Cogmind - Beta 14 @@@ ROGUE MODE // 2024.11.04 @ 19:41:22 Player: Shimmyarah Result: Destroyed by G-47 Trooper with Particle Gun Performance ------------- Evolutions (1) 500 Regions Visited (4) 800 Robots Destroyed (30) 150 Value Destroyed (671) 671 Prototype IDs (0) 0 Alien Tech Used (0) 0 Bonus (128) 128 TOTAL SCORE: 2249 Bonus ------- Follower Combat Kills 128 Cogmind --------- Core Integrity 0/400 Matter 246/300 Energy 11/100 System Corruption 2% Temperature Hot (240) Movement Walking (120) Location -9/Storage Parts ------- > --- POWER (1) -------- (None) > --- PROPULSION (2) --- Aluminum Leg > --- UTILITY (3) ------ Sensor Array Signal Interpreter Seismic Detector > --- WEAPON (3) ------- (None) > --- INVENTORY (5) ---- Light Ion Engine Wheel ECM Suite Peak State ------------ > --- POWER ------------ Light Ion Engine > --- PROPULSION ------- Light Treads Light Treads > --- UTILITY ---------- Improved Terrain Scanner Seismic Detector > --- WEAPON ----------- Beamcaster Light EM Pulse Cannon Heavy Assault Rifle > --- INVENTORY -------- Beam Cannon Assault Rifle [Rating: 16] Favorites ----------- Power Ion Engine Engine Ion Engine Propulsion Light Treads Treads Light Treads Leg Aluminum Leg Utility Seismic Detector Device Seismic Detector Processor Targeting Computer Protection Weapon Shielding Weapon EM Pulse Gun Energy Gun EM Pulse Gun Energy Cannon Beam Cannon Ballistic Gun Assault Rifle Ballistic Cannon Improved Light Cannon Launcher Grenade Launcher Special Weapon Mining Laser Build | -11 -10 -10 -9 -9 ------- Run | Yrd Mat Min Mat Sto Slots Evolved 2 | . . . 2 . Power . | . . . . . Propulsion . | . . . . . Utility 1 | . . . 1 . Weapon 1 | . . . 1 . Parts Attached 34 | 7 2 2 6 17 Power 4 | 1 . . . 3 Engine 4 | 1 . . . 3 Core . | . . . . . Reactor . | . . . . . Propulsion 4 | 2 . . . 2 Treads 2 | 2 . . . . Leg 2 | . . . . 2 Wheel . | . . . . . Hover . | . . . . . Flight . | . . . . . Utility 8 | 2 1 . 1 4 Device 4 | 2 . . 1 1 Storage . | . . . . . Processor 3 | . . . . 3 Hackware . | . . . . . Protection 1 | . 1 . . . Artifact . | . . . . . Weapon 18 | 2 1 2 5 8 Energy Gun 3 | 1 . . 1 1 Energy Cannon 3 | . . . . 3 Ballistic Gun 4 | 1 . . 1 2 Ballistic Cannon 1 | . . . . 1 Launcher 2 | . . 1 1 . Special Weapon 5 | . 1 1 2 1 Impact Weapon . | . . . . . Slashing Weapon . | . . . . . Piercing Weapon . | . . . . . Special Melee Weapon . | . . . . . Unidentified Prototypes . | . . . . . Parts Lost 16 | . . . . 16 Power 2 | . . . . 2 Propulsion 3 | . . . . 3 Utility 1 | . . . . 1 Weapon 10 | . . . . 10 Highest Loss Streak 7 | . . . . 7 To Critical Strikes . | . . . . . Average Slot Usage (%) 88 | . 100 100 100 76 Engine 10 | . 14 14 11 7 Treads 19 | . 28 28 22 11 Leg 3 | . . . . 7 Device 19 | . 25 14 22 20 Processor 2 | . . . . 5 Protection 6 | . 2 14 11 2 Energy Gun 10 | . 14 14 11 7 Ballistic Gun 3 | . 1 . 7 5 Ballistic Cannon 1 | . . . . 3 Launcher 3 | . . 3 7 2 Special Weapon 6 | . 12 10 6 2 Peak Build Rating 16 | 9 9 7 15 16 Average Rating 9 | 7 8 7 11 11 On Entrance 7 | . 9 7 7 15 Naked Turns . | . . . . . Heaviest Build 17 | 11 11 12 17 17 Greatest Support 40 | 40 40 40 40 40 Greatest Overweight (x) 2 | . . . . 2 Average Overweight (x) . | . . . . . Largest Inventory Capacity 5 | 5 5 5 5 5 Average Capacity 5 | 5 5 5 5 5 Most Carried 5 | 4 5 5 5 5 Average Carried 3 | 2 3 5 3 3 Final Capacity 5 | 5 5 5 5 5 Final Carried 5 | 3 5 5 5 3 Class Distribution -------------------- 74% | Mutant 9% | Skirmisher 8% | Scavenger-Skirmisher 7% | Gunner Dominant Class ---------------- Mutant | -10/Materials Mutant | -10/Mines Skirmisher | -9/Materials Mutant | -9/Storage Resources | -11 -10 -10 -9 -9 ----------- Run | Yrd Mat Min Mat Sto Matter Collected 769 | 324 . 4 69 372 Remotely . | . . . . . Salvage Created 808 | 212 . 13 118 465 Parts 65 | 22 . 6 4 33 Haulers Intercepted . | . . . . . Recyclers Shooed 1 | 1 . . . . Parts Field Recycled . | . . . . . Retrieved Matter . | . . . . . Parts Self-Destructed . | . . . . . Prevented . | . . . . . Kills | -11 -10 -10 -9 -9 ------- Run | Yrd Mat Min Mat Sto Combat Hostiles Destroyed 17 | . . 3 3 11 Guns 11 | . . . 2 9 Cannons 2 | . . . . 2 AOE 4 | . . 3 1 . Classes Destroyed 9 | 3 . 1 1 4 Worker 4 | 2 . . 1 1 Builder 1 | . . . . 1 Tunneler 7 | 6 . . . 1 Recycler 1 | 1 . . . . Swarmer 3 | . . 3 . . Grunt 9 | . . . 3 6 Brawler 1 | . . . . 1 Duelist 1 | . . . . 1 Sentry 3 | . . . . 3 Best Kill Streak 4 | 3 . 3 3 4 Combat Bots Only 3 | . . 3 2 3 Max Kills in Single Turn 2 | 1 . 2 2 1 Gunslinging . | . . . . . Exploded 2 | . . 2 1 . Melee . | . . . . . Uniques/NPCs Destroyed . | . . . . . Combat | -11 -10 -10 -9 -9 -------- Run | Yrd Mat Min Mat Sto Hostile Shots Fired 142 | . 2 11 10 119 Missed 37 | . . 7 7 23 Damage Taken 1622 | 38 36 51 36 1461 Core 451 | 38 . . . 413 Absorbed by Shields . | . . . . . Redirected to Shielding 52 | . 10 8 6 28 Core Remaining (%) 84 | 84 . 84 . . Volleys Fired 81 | 18 3 7 8 45 Largest 3 | 2 2 2 3 3 Hottest 205 | 60 140 140 205 191 Shots Fired 145 | 36 6 13 20 70 Gun 107 | 36 3 7 15 46 Cannon 10 | . . . . 10 Launcher 16 | . . 2 4 10 Special 12 | . 3 4 1 4 Kinetic 53 | 18 . . 7 28 Thermal 39 | . 3 4 2 30 Explosive 16 | . . 2 4 10 Electromagnetic 37 | 18 3 7 7 2 Robot Hit Streak 9 | 9 . 2 3 9 Robot Miss Streak 2 | 2 . 1 1 2 Penetration Max . | . . . . . Secondary Targets . | . . . . . Shots Hit Robots 84 | 27 . 3 4 50 Core Hits 42 | 10 . 3 8 21 Critical Kills . | . . . . . Critical Parts Destroyed . | . . . . . Critical Strikes . | . . . . . Melee Attacks . | . . . . . Impact . | . . . . . Slashing . | . . . . . Piercing . | . . . . . Sneak Attacks . | . . . . . Combat Hostiles . | . . . . . Follow-up Attacks . | . . . . . Damage Inflicted 1818 | 357 . 299 191 971 Guns 1012 | 333 . 12 41 626 Cannons 119 | . . . . 119 Explosions 634 | 24 . 287 150 173 Melee . | . . . . . Ramming 5 | . . . . 5 Kinetic 511 | 153 . . 14 344 Thermal 490 | 24 . . 36 430 Explosive 574 | . . 287 114 173 Electromagnetic 238 | 180 . 12 27 19 Impact . | . . . . . Slashing . | . . . . . Piercing . | . . . . . Highest Corruption 2 | . . . . 2 Average Corruption 1 | . . . . 1 Corruption Purged . | . . . . . Corruption Blocked . | . . . . . Effects 6 | . . . . 6 Message Errors 1 | . . . . 1 Heat Flow Errors 1 | . . . . 1 Data Loss (minor) 3 | . . . . 3 Alerts 1 | . . . . 1 Overload Shots . | . . . . . Overflow Damage 14 | . . 14 . . Projectiles . | . . . . . Explosions 14 | . . 14 . . Melee . | . . . . . Knockbacks . | . . . . . Impact . | . . . . . Kinetic . | . . . . . Secondary . | . . . . . Self-Inflicted Damage 119 | 38 . 18 . 63 Shots 7 | 1 . 2 . 4 Rammed 1 | . . . . 1 Targets Rammed 2 | . . . . 2 Kicked 1 | . . . . 1 Crushed . | . . . . . Highest Temperature 408 | 12 80 64 90 408 Average Temperature 111 | 12 34 24 25 161 Received Heat Transfer 639 | . 18 . 18 603 Effects 6 | . . . . 6 Interference 3 | . . . . 3 Matter Decay 2 | . . . . 2 Short Circuit 1 | . . . . 1 Siege Activations . | . . . . . Robots Corrupted . | . . . . . Combat Hostiles . | . . . . . Parts Fried . | . . . . . Impact Corruptions . | . . . . . Robots Melted . | . . . . . Combat Hostiles . | . . . . . Parts Melted . | . . . . . Heat Transferred 826 | . . . 50 776 Parts Sabotaged . | . . . . . Parts Stolen . | . . . . . Parts Stripped . | . . . . . Power Chain Reactions 2 | 1 . . 1 . Alert | -11 -10 -10 -9 -9 ------- Run | Yrd Mat Min Mat Sto Peak Influence 379 | 45 31 109 166 379 Initial 69 | . 29 12 42 69 Average 128 | 21 30 81 112 232 Maximum Alert Level 1 | . . . . 1 Low Security (%) 78 | 100 100 100 100 47 Level 1 21 | . . . . 52 Level 2 . | . . . . . Level 3 . | . . . . . Level 4 . | . . . . . Level 5 . | . . . . . High Security . | . . . . . Max Security . | . . . . . Squads Dispatched 8 | . . . 2 6 Investigation . | . . . . . Extermination . | . . . . . Reinforcement 3 | . . . 2 1 Assault 2 | . . . . 2 Garrison 3 | . . . . 3 Intercept . | . . . . . Searches Triggered . | . . . . . Construction Impeded . | . . . . . Haulers Reinforced . | . . . . . Active Scanning Responses . | . . . . . Cargo Convoy Interrupts . | . . . . . Stealth | -11 -10 -10 -9 -9 --------- Run | Yrd Mat Min Mat Sto Distress Signals 2 | . . . 1 1 Communications Jammed . | . . . . . Distress Signals . | . . . . . Times Spotted 35 | . 3 3 7 22 Peak Tracking Total 8 | . 2 3 4 8 Tactical Retreats . | . . . . . Traps | -11 -10 -10 -9 -9 ------- Run | Yrd Mat Min Mat Sto Traps Triggered 2 | . . . . 2 Indirectly . | . . . . . Trap Hack Attempts . | . . . . . Triggered . | . . . . . Disarmed . | . . . . . Reprogrammed . | . . . . . Reused . | . . . . . Traps Extracted . | . . . . . Installed . | . . . . . Triggered . | . . . . . Machines | -11 -10 -10 -9 -9 ---------- Run | Yrd Mat Min Mat Sto Machines Disabled 4 | . . . 1 3 Max in Single Turn 1 | . . . . 1 Machines Repaired . | . . . . . Machines Dismantled . | . . . . . Machines Sabotaged . | . . . . . Overloaded Fab Kills . | . . . . . Hacking | -11 -10 -10 -9 -9 --------- Run | Yrd Mat Min Mat Sto Machines Accessed 1 | . . . . 1 Terminals . | . . . . . Fabricators . | . . . . . Repair Stations . | . . . . . Recycling Units . | . . . . . Scanalyzers . | . . . . . Garrison Access 1 | . . . . 1 Total Hacks 1 | . . . . 1 Successful 1 | . . . . 1 Failed . | . . . . . Catastrophic . | . . . . . Database Lockouts . | . . . . . Manual . | . . . . . Terminals . | . . . . . Fabricators . | . . . . . Repair Stations . | . . . . . Recycling Units . | . . . . . Scanalyzers . | . . . . . Garrison Access 1 | . . . . 1 Terminal Hacks . | . . . . . Fabricator Hacks . | . . . . . Repair Station Hacks . | . . . . . Recycling Unit Hacks . | . . . . . Scanalyzer . | . . . . . Garrison Access Hacks 1 | . . . . 1 Unlock Access 1 | . . . . 1 Unauthorized Hacks . | . . . . . Terminals . | . . . . . Fabricators . | . . . . . Repair Stations . | . . . . . Recycling Units . | . . . . . Scanalyzers . | . . . . . Garrison Access . | . . . . . Data Cores Recovered . | . . . . . Used . | . . . . . Hacking Detections 1 | . . . . 1 Full Trace Events . | . . . . . Feedback Events . | . . . . . Feedback Blocked . | . . . . . Robot Schematics Acquired . | . . . . . Robots Built . | . . . . . Authchips . | . . . . . Time . | . . . . . Total Robot Build Rating . | . . . . . Part Schematics Acquired . | . . . . . Parts Built . | . . . . . Authchips . | . . . . . Time . | . . . . . Total Part Build Rating . | . . . . . Parts Repaired . | . . . . . Time . | . . . . . Parts Recycled . | . . . . . Recycled Matter . | . . . . . Retrieved Matter . | . . . . . Retrieved Components . | . . . . . Parts Scanalyzed . | . . . . . Part Schematics Acquired . | . . . . . Parts Damaged . | . . . . . Bothacking | -11 -10 -10 -9 -9 ------------ Run | Yrd Mat Min Mat Sto Used RIF Installer . | . . . . . Robots Hacked . | . . . . . Non-combat . | . . . . . Combat . | . . . . . Robot Hacks Applied . | . . . . . Relay Couplers Released . | . . . . . Fabnet Peak Effective % . | . . . . . Robots Rewired . | . . . . . Allies Hacked . | . . . . . Hacks Repelled . | . . . . . Allies | -11 -10 -10 -9 -9 -------- Run | Yrd Mat Min Mat Sto Total Allies 4 | . . 2 . 2 Largest Group 2 | . . 2 2 2 Highest-Rated Group 62 | . . 45 45 62 Highest-Rated Ally 31 | . . 31 31 31 Total Orders . | . . . . . Ally Attacks 22 | . . . 6 16 Total Damage 388 | . . . 104 284 Kills 6 | . . . 1 5 Allies Corrupted . | . . . . . Allies Melted 1 | . . . . 1 Intel | -11 -10 -10 -9 -9 ------- Run | Yrd Mat Min Mat Sto Robot Analysis Total . | . . . . . Derelict Logs Recovered . | . . . . . Drone Launches . | . . . . . Drone Recoveries . | . . . . . Exploration | -11 -10 -10 -9 -9 ------------- Run | Yrd Mat Min Mat Sto Turns Passed 1397 | 246 150 334 100 567 Spaces Moved 724 | 114 82 190 38 300 Core 52 | 6 . . . 46 Treads 555 | 108 82 190 38 137 Legs 117 | . . . . 117 Wheels . | . . . . . Hover . | . . . . . Flight . | . . . . . Fastest Speed 50 | 50 160 160 160 100 Average Speed 149 | 154 160 160 160 138 Slowest Speed 160 | 160 160 160 160 160 Overloaded Moves . | . . . . . Propulsion Burnouts . | . . . . . Robots Hopped . | . . . . . Cave-ins Triggered . | . . . . . Exploration Rate (%) 22 | 5 21 50 9 25 Regions Visited 4 Branch Regions 2 Pre-discovered Areas . | . . . . . Known Exits Taken . | . . . . . Unknown Exits Taken 4 | 1 1 1 1 . Scrap Searched . | . . . . . Spaces Dug 19 | . 3 4 12 . Terrain Destroyed 108 | 5 3 13 19 68 Melee . | . . . . . Projectile 13 | . 3 4 1 5 AOE 95 | 5 . 9 18 63 Terrain Rammed . | . . . . . Walls Destroyed . | . . . . . Machines Disabled . | . . . . . Actions | -11 -10 -10 -9 -9 --------- Run | Yrd Mat Min Mat Sto Total 870 | 148 88 198 57 379 Wait . | . . . . . Move 720 | 113 81 189 37 300 Hop . | . . . . . Pick Up 29 | 10 2 . 4 13 Fast Attach 1 | . . . . 1 Attach 21 | 7 . . 2 12 Detach . | . . . . . Swap 12 | . 2 2 4 4 Drop 4 | . . . 2 2 Fire 81 | 18 3 7 8 45 Melee . | . . . . . Ram . | . . . . . Kick 1 | . . . . 1 Crush 1 | . . . . 1 Escape Stasis . | . . . . . Rewire . | . . . . . Trap . | . . . . . Miscellaneous . | . . . . . Route ------- -11/Scrapyard -10/Materials -10/Mines -9/Materials -9/Storage (discovered 1 exit: Gar) History --------- Turn | Location | Event 6 | -11/Scrapyard | Discovered new exit (range 14) 247 | -11/Scrapyard | Entered Materials 305 | -10/Materials | Build established: Mutant 371 | -10/Materials | Discovered new exit (range 16) 397 | -10/Materials | Entered Mines 699 | -10/Mines | Discovered new exit (range 5) 731 | -10/Mines | Entered Materials 731 | -9/Materials | Accompanied by 2 allies 731 | -9/Materials | Evolved 2 slots: Utility x1, Weapon x1 732 | -9/Materials | Discovered new exit (range 8) 738 | -9/Materials | Led the pair of lost Derelicts to an unsafe place 831 | -9/Materials | Entered Storage 894 | -9/Storage | Identified exit to Garrison 953 | -9/Storage | Garrison activated, responded to threat 1014 | -9/Storage | Lost 4 parts (1p1u2w) 1129 | -9/Storage | Core integrity fell below 50% 1150 | -9/Storage | Lost 7 parts (1p2n4w) 1340 | -9/Storage | Met a pair of Derelict thieves 1386 | -9/Storage | Core integrity fell below 20% 1398 | -9/Storage | Destroyed by G-47 Trooper with Particle Gun Last Messages --------------- 01379_ I-25 Savior destroyed. 01380_ Imp. Light Cannon destroyed. 01382_ R-06 Scavenger collects Sml. Laser. 01382_ G-34 Mercenary suffers critical hit (Burn). 01382_ Aluminum Leg destroyed. 01384_ G-34 Mercenary suffers critical hit (Burn). 01385_ G-34 Mercenary heat short circuits Ion Engine. 01386_ R-06 Scavenger collects Imp. Ion Engine. 01386_ R-06 Scavenger destroyed. 01387_ G-34 Mercenary destroyed. 01387_ Lgt. Ion Engine severed. 01390_ G-34 Mercenary destroyed. 01391_ Acquired 57 matter. 01394_ PN-3VP(g) destroyed. 01395_ Acquired 48 matter. 01396_ Assault Rifle destroyed. 01397_ Mining Laser destroyed. Map ----- +----------------------------------------------------+ | ???? ???#?????#?????????# #???? | | ?????????????###????????+ #???# | | ????????###### #????#???# #???? | | ???###### # #???????## ##################???? | | #?## # ######?#?# # ! #???????????? | | ?## # # # " #???# # #???????????? | | ## ## % #"G"#???# # #???????????? | | # # ##">"##### # #???????????? | | # % # ""# # # #???????????? | | # """# """ # #"###+#+###??????????? | | # "# """ # +?? ???????? | | # % # """ + #??#???????? | | % #######+# # #??????????? | | % % + """ # ###### #??????????? | | # # """ # ## # #??????????? | | ##### =[ # """ # # + #??????????? | | ##??# ![ # # #+#########??? | | ????# [[ ##+##+####^^^ ^ # # #??? | | ????# x #### # ?# #??? | | ??? x x # ??# ! #??? | | ? % ##+##+## ########## ##???# #??? | | #? # #????????#"%%% ####?###########??? | | " ?? ? # #???????##[%* ???????? | | " ###?? ??# #?????###[#/###########???????????? | | " ?????"Y"??? +??????#;ggg!##???????????????????? | | ?????"""??? #??????#;%@l%T#???????????????????? | | ? ???????????? ??????####"!"###??????????????????? | | ?????????????? ????????#!=*!* #??????????????????? | | ?????????????? ?????#??# **[!!#??????????????????? | | ???????????????????????#! ! #??????????????????? | | ???????????????????????#! ! #??????????????????? | | ???????????????????????########???x??????????????? | | ?????????????????????????????????????????????????? | | ?????????????????????????????????????????????????? | | ?????????????????????????????????????????????????? | | ?????????????????????????????????????????????????? | | ?????????????????????????????????????????????????? | | ?????????????????????????????????????????????????? | | ?????????????????????????x???????????????????????? | | ?????????????????????????????????????????????????? | | ?????????????????????????????????????????????????? | | ?????????????????????????????????????????????????? | | ?????????????????????????????????????????????????? | | ?????????????????????????????????????????????????? | | ?????????????????????????????????????????????????? | | ?????????????????????????????????????????????????? | | ?????????????????????????????????????????????????? | | ?????????????????????????????????????????????????? | | ?????????????????????????????????????????????????? | | ?????????????????????????????????????????????????? | +----------------------------------------------------+ Best States ------------- Heat Dissipation 28 Energy Generation 10 Energy Capacity 250 Matter Stores 300 Matter Capacity 300 Sight Range 16 Robot Scan Range 14 Terrain Scan Range 16 Terrain Scan Density 10 Weapon Shielding 33 Evasion (%) 55 Targeting Accuracy 5 Recoil Reduction 2 Salvage Targeting 1 Item Schematics ----------------- None Robot Schematics ------------------ None Fabricated ------------ Nothing Alien Tech Used ----------------- None Achievements -------------- None Challenges ------------ None Game ------ Seed TrapClaymoresLoader Manual? 0 Play Time 00:17:44 Cumulative 9.7 hours Start 2024.11.04 @ 19:26:36 End 2024.11.04 @ 19:41:22 Sessions 1 Manual Loads 0 Difficulty Rogue Special Mode None Game No. 23 Rogue 23 Adventurer 0 Explorer 0 Win Type - Total 0 Types 0/0/0/0/0/0/0/0/0 Lore% 6 Gallery% 12 Achievement% 10 Wizard Run 0 Options --------- Layout 2 ASCII 0 Keyboard 0 Movement Arrows Keybinds 0 Fullscreen 2 Font 24/Smallcaps Map View 25x24 Zoom Use 73% Tactical HUD 1 Map Filters NONE Filters NONE Steam 1 RUN: a21819c3-989c-4789-8386-abcf7b0b5ab5